bitfinex/quotes_ETHUSD_20241217
["timestamp","ask_amount","ask_price","bid_price","bid_amount"]
[1734471397252,3.21890098,3936.2,3934.4,0.10422359]
[1734471397462,3.21890098,3936.2,3934.3,0.25416]
[1734471397463,0.3218901,3936.1,3934.5,0.7944]
[1734471397682,2.54103,3935.4,3934.5,0.7944]
[1734471397985,0.3218901,3936.1,3934.5,0.7944]
[1734471397986,2.54115,3935.3,3934.5,0.7944]
[1734471398186,0.3218901,3936.1,3934.5,0.7944]
[1734471398485,2.54123,3935.2,3934.5,0.7944]
[1734471398682,0.8005,3935.5,3934.5,0.7944]
[1734471398841,2.54136,3934.9,3934.5,0.7944]
[1734471399487,0.8005,3935.5,3934.5,0.7944]
[1734471399640,2.54116,3935.3,3934.5,0.7944]
[1734471399841,2.54085,3935.7,3934.5,0.7944]
[1734471400059,3.34153,3935.4,3934.5,0.7944]
[1734471400270,2.54139,3934.9,3934.5,0.7944]
[1734471400599,2.54143,3934.8,3934.5,0.7944]
[1734471400752,2.5411,3935.3,3934.5,0.7944]
[1734471400753,2.5413,3935.0,3934.5,0.7944]
[1734471400966,3.04954,3935.0,3934.5,0.7944]
[1734471401266,2.54148,3934.7,3934.5,0.7944]
[1734471401517,0.50824,3935.0,3933.2,10.198017]
[1734471401518,2.54136,3934.9,3933.6,0.7944]
[1734471401783,2.5416,3934.6,3933.7,0.10440106]
[1734471401983,2.5416,3934.6,3933.8,0.10440106]
[1734471402295,2.54143,3934.8,3933.9,0.89880106]
[1734471402599,2.54117,3935.2,3934.1,0.25418]
[1734471402910,2.54117,3935.2,3934.2,0.89880671]
[1734471403080,0.8005,3935.4,3934.2,0.7944]
[1734471403404,2.54146,3934.8,3934.2,0.7944]
[1734471403953,0.8005,3935.4,3934.2,0.7944]
[1734471404181,2.54161,3934.6,3934.2,0.7944]
[1734471404662,2.54137,3934.9,3934.2,0.7944]
[1734471404882,2.795507,3934.9,3934.2,0.7944]
[1734471405312,0.254137,3934.9,3934.2,0.7944]
[1734471405616,2.54152,3934.7,3934.2,0.7944]
[1734471407820,2.54162,3934.5,3934.2,0.7944]
[1734471408514,0.7662,3934.8,3934.2,0.7944]
[1734471408713,0.7662,3935.2,3934.2,0.7944]
[1734471409032,2.5413,3935.0,3934.2,0.7944]
[1734471409202,2.54118,3935.2,3934.2,0.7944]
[1734471409401,2.54126,3935.1,3934.2,0.7944]
[1734471409773,3.30716,3935.6,3934.2,0.7944]
[1734471409973,2.54113,3935.3,3934.2,0.7944]
[1734471410200,0.64311466,3935.5,3934.2,0.7944]
[1734471410410,2.54117,3935.2,3934.2,0.7944]
[1734471410731,2.5408,3935.8,3934.8,0.8047]
[1734471410936,2.54066,3936.0,3934.8,1.05884]
[1734471411235,2.54058,3936.1,3934.9,0.8047]
[1734471411728,2.54099,3935.5,3934.9,0.8047]
[1734471413186,2.54065,3936.0,3934.9,0.8047]
[1734471413388,2.5409,3935.7,3934.9,0.8047]
[1734471413688,2.54058,3936.1,3934.9,0.8047]
[1734471413893,3.30676,3936.2,3934.9,0.8047]
[1734471413894,2.54073,3935.9,3934.9,0.8047]
[1734471415195,0.7662,3936.2,3934.9,0.8047]
[1734471415396,2.54099,3935.5,3934.9,0.8047]
[1734471415598,2.54077,3935.9,3934.9,0.8047]
[1734471415798,2.54077,3935.9,3933.9,0.55413689]
[1734471415799,2.54129,3935.0,3933.9,0.29994689]
[1734471416007,3.30733,3935.3,3934.0,0.90900586]
[1734471416334,3.30733,3935.3,3934.1,0.10430609]
[1734471416335,2.54137,3934.9,3934.1,0.10430609]
[1734471416496,2.54137,3934.9,3934.2,0.90900609]
[1734471416697,2.54137,3934.9,3934.3,0.10430609]
[1734471417804,2.54137,3934.9,3934.2,0.8047]
[1734471418230,0.7662,3935.3,3934.2,0.8047]
[1734471418746,2.54155,3934.7,3934.2,0.8047]
[1734471420428,2.54155,3934.7,3934.3,0.10445192]
[1734471420629,2.54155,3934.7,3934.2,0.8047]
[1734471421029,2.54116,3935.2,3934.2,0.8047]
[1734471421030,0.7662,3935.3,3934.3,0.10445029]
[1734471421230,2.54159,3934.6,3934.2,0.8047]
[1734471421552,2.54159,3934.6,3934.3,0.10449675]
[1734471421760,2.54159,3934.6,3934.2,0.8047]
[1734471421936,2.54159,3934.6,3934.3,0.10449602]
[1734471422270,2.54159,3934.6,3934.2,0.8047]
[1734471422475,2.54159,3934.6,3934.3,0.10455961]
[1734471422633,2.54159,3934.6,3934.4,0.10455961]
[1734471422832,2.54159,3934.6,3934.2,0.8047]
[1734471423029,2.54159,3934.6,3934.3,0.10455665]
[1734471423270,0.7662,3935.3,3934.4,0.10455665]
[1734471423466,0.7662,3935.3,3934.2,0.8047]
[1734471423467,2.54133,3935.0,3934.5,0.10469383]
[1734471423669,0.508249,3934.9,3934.2,0.8047]
[1734471423840,2.54151,3934.7,3934.3,0.10468664]
[1734471424042,2.54151,3934.7,3934.2,0.8047]
[1734471424043,2.54151,3934.7,3934.4,0.10468664]
[1734471424271,2.54151,3934.7,3934.5,0.10468664]
[1734471424430,2.54151,3934.7,3934.2,0.8047]
[1734471424779,2.54168,3934.4,3934.3,0.10475527]
[1734471426181,2.54156,3934.6,3934.3,0.10475527]
[1734471426358,2.54156,3934.6,3934.4,0.10475527]
[1734471426541,2.54156,3934.6,3934.5,0.10475527]
[1734471427346,2.5414,3934.9,3934.2,0.8047]
[1734471427556,2.5414,3934.9,3934.3,0.1047668]
[1734471427762,2.54168,3934.4,3934.2,0.8047]
[1734471428076,2.54168,3934.4,3934.3,0.10476688]
[1734471428273,2.54168,3934.4,3934.2,0.8047]
[1734471428471,2.54168,3934.4,3934.3,0.10476602]
[1734471429377,2.54168,3934.4,3933.9,0.7698]
[1734471429378,0.254168,3934.4,3933.9,0.7698]
[1734471429681,2.54213,3933.7,3933.6,0.7698]
[1734471429836,0.254168,3934.4,3932.1,1.59039584]
[1734471429837,0.7657,3934.2,3933.2,10.713587]
[1734471430182,2.54239,3933.3,3933.2,10.713587]
[1734471430345,2.54239,3933.3,3933.2,9.943787]
[1734471433236,2.54219,3933.7,3933.2,9.943787]
[1734471433680,2.54187,3934.1,3933.3,0.7698]
[1734471433978,2.5422,3933.6,3933.3,0.7698]
[1734471436551,1.31068422,3934.4,3933.3,0.7952217]
[1734471436552,2.54168,3934.4,3933.3,0.7952217]
[1734471436751,2.54216,3933.7,3933.3,0.7698]
[1734471437599,0.7657,3934.6,3933.3,0.7698]
[1734471437900,2.54209,3933.8,3933.3,0.7698]
[1734471438250,0.58249503,3934.5,3933.3,0.7698]
[1734471438457,2.54214,3933.7,3933.3,0.7698]
[1734471439388,0.7657,3934.4,3933.2,9.943787]
[1734471439694,2.54239,3933.3,3933.2,9.943787]
[1734471443250,3.127423,3933.3,3933.2,9.943787]
[1734471448007,7.443123,3933.3,3933.2,3.587517]
[1734471448317,6.85815,3933.2,3933.1,1e-07]
[1734471448458,8.13656696,3933.2,3933.1,1e-07]
[1734471448660,11.45931695,3933.2,3933.1,1e-07]
[1734471448959,9.87454261,3933.2,3933.1,1e-07]
[1734471449522,10.92768206,3933.2,3933.1,1e-07]
[1734471449857,8.59612565,3933.2,3933.1,1e-07]
[1734471450422,9.87347652,3933.2,3933.1,1e-07]
[1734471450882,2.54349,3931.6,3931.5,0.7698]
[1734471452209,2.5432,3932.1,3931.5,0.7698]
[1734471452394,2.54335,3931.9,3931.5,0.7698]
[1734471452717,2.5432,3932.1,3931.5,0.7698]
[1734471453006,2.54349,3931.6,3931.5,0.7698]
[1734471454599,2.54284,3932.7,3931.5,0.7698]
[1734471454770,2.54298,3932.4,3931.5,0.7698]
[1734471455402,2.54298,3932.4,3931.3,0.7816]
[1734471455708,2.54298,3932.4,3931.5,0.7816]
[1734471455911,2.54302,3932.4,3931.5,0.7816]
[1734471456074,2.54271,3932.8,3931.5,0.7816]
[1734471457286,2.54305,3932.3,3931.5,0.7816]
[1734471458315,2.54271,3932.8,3931.5,0.7816]
[1734471458519,2.54285,3932.6,3931.6,0.10436697]
[1734471458817,2.54285,3932.6,3931.7,0.7816]
[1734471459312,2.54292,3932.5,3931.7,0.7816]
[1734471460183,2.5428,3932.7,3931.7,0.7816]
[1734471460497,2.54271,3932.8,3931.9,0.7816]
[1734471460819,2.54279,3932.7,3932.0,0.1044304]
[1734471460972,2.54279,3932.7,3931.9,0.7816]
[1734471461309,2.54279,3932.7,3932.0,0.20885327]
[1734471461468,2.54279,3932.7,3931.9,0.7816]
[1734471461799,2.54279,3932.7,3932.0,0.10443319]
[1734471461994,2.54279,3932.7,3931.9,0.7816]
[1734471462207,2.54279,3932.7,3932.0,0.10442943]
[1734471462366,2.54279,3932.7,3931.9,0.7816]
[1734471462566,2.54279,3932.7,3932.0,0.10443441]
[1734471462825,5.72220975,3932.9,3931.9,0.7816]
[1734471462980,3.30425,3932.9,3932.0,0.10443248]
[1734471463183,6.17955975,3933.3,3931.4,0.7816]
[1734471463398,6.17955975,3933.3,3931.9,0.7816]
[1734471463399,2.54253,3933.1,3931.9,0.7816]
[1734471463601,3.17955975,3933.3,3932.1,0.7816]
[1734471463602,5.72195975,3933.3,3932.1,0.7816]
[1734471463807,3.17955975,3933.3,3932.2,0.10443925]
[1734471463974,2.54246,3933.2,3932.1,0.7816]
[1734471464176,2.54246,3933.2,3932.3,0.10443591]
[1734471464383,2.54246,3933.2,3932.5,0.7816]
[1734471464622,0.7616,3933.6,3932.5,0.7816]
[1734471464916,2.54234,3933.4,3932.5,0.7816]
[1734471465081,2.54242,3933.3,3932.5,0.7816]
[1734471465476,2.54242,3933.3,3931.8,0.7816]
[1734471465477,2.5431,3932.2,3931.8,0.7816]
[1734471465683,2.54278,3932.7,3930.4,2.37086474]
[1734471465684,3.17955975,3932.4,3931.5,0.7816]
[1734471466006,2.5432,3932.1,3931.5,0.7816]
[1734471466212,2.5433,3931.9,3931.5,0.7816]
[1734471467681,2.54334,3931.9,3931.5,0.7816]
[1734471468519,2.54338,3931.8,3931.5,0.7816]
[1734471470307,3.0,3932.1,3931.5,0.7816]
[1734471470521,2.54349,3931.6,3930.5,0.7672]
[1734471470834,2.54349,3931.6,3930.6,0.10460383]
[1734471470990,2.54349,3931.6,3930.7,0.7672]
[1734471471192,2.54349,3931.6,3930.8,0.10459315]
[1734471471424,2.54333,3931.9,3930.9,0.87179315]
[1734471471622,2.54333,3931.9,3931.1,0.7672]
[1734471471928,2.54333,3931.9,3931.2,0.10459315]
[1734471472093,2.54333,3931.9,3931.3,0.10459315]
[1734471472293,3.0,3932.3,3931.4,0.10459315]
[1734471472490,3.0,3932.0,3931.5,0.10459315]
[1734471472687,2.54323,3932.0,3931.1,0.7672]
[1734471472891,3.0,3932.3,3931.2,0.10461838]
[1734471473115,2.5433,3931.9,3931.3,0.10461838]
[1734471473322,2.5433,3931.9,3931.4,0.10461838]
[1734471473519,2.5433,3931.9,3931.1,0.7672]
[1734471473729,2.5433,3931.9,3931.2,0.1046315]
[1734471473907,2.5433,3931.9,3931.3,0.1046315]
[1734471474236,2.5433,3931.9,3931.4,0.1046315]
[1734471474395,2.5433,3931.9,3931.5,0.1046315]
[1734471474591,2.5433,3931.9,3931.1,0.7672]
[1734471474792,2.5433,3931.9,3931.2,0.10464099]
[1734471475009,2.5433,3931.9,3931.3,0.10464099]
[1734471475221,2.5433,3931.9,3931.4,0.10464099]
[1734471475433,2.5433,3931.9,3931.1,0.8948]
[1734471475434,2.5433,3931.9,3931.5,0.10464099]
[1734471475638,2.5433,3931.9,3931.1,0.8948]
[1734471475939,2.5433,3931.9,3931.2,0.10465836]
[1734471476097,2.5433,3931.9,3931.3,0.86455836]
[1734471476293,2.5433,3931.9,3931.4,0.10465836]
[1734471476622,0.12502953,3932.5,3931.5,0.10465836]
[1734471476844,0.22461221,3932.4,3931.6,0.10465836]
[1734471477010,0.22461221,3932.4,3931.3,0.7599]
[1734471477215,0.22461221,3932.4,3931.4,0.10469762]
[1734471477411,3.22461221,3932.4,3931.5,0.10469762]
[1734471477626,3.22461221,3932.4,3931.3,0.7599]
[1734471477827,0.60218302,3932.3,3931.4,0.10470567]
[1734471478032,0.60218302,3932.3,3931.5,0.10470567]
[1734471478248,2.54321,3932.1,3931.3,0.7599]
[1734471478418,0.60218302,3932.3,3931.4,0.10470271]
[1734471478620,2.54323,3932.0,3931.5,0.10470271]
[1734471478940,0.60218302,3932.3,3931.3,0.7599]
[1734471479111,2.54332,3931.9,3931.4,0.1047034]
[1734471479317,2.54332,3931.9,3931.5,0.1047034]
[1734471479540,2.54332,3931.9,3931.3,0.7599]
[1734471479716,2.54332,3931.9,3931.4,0.1047054]
[1734471480039,2.54332,3931.9,3931.5,0.1047054]
[1734471480239,2.54332,3931.9,3931.3,0.7599]
[1734471480755,1.05251453,3932.7,3931.4,0.13013437]
[1734471480958,0.8143,3933.1,3931.7,0.7599]
[1734471481127,2.54265,3932.9,3931.7,0.7599]
[1734471481450,2.54265,3932.9,3931.9,0.7599]
[1734471481640,3.25887057,3933.1,3932.0,0.10468154]
[1734471481840,2.54285,3932.6,3932.1,0.10468154]
[1734471482042,2.54285,3932.6,3932.2,0.10468154]
[1734471482211,2.54285,3932.6,3931.9,0.7599]
[1734471482212,2.797135,3932.6,3931.9,0.7599]
[1734471482412,2.54292,3932.5,3932.0,0.10466001]
[1734471482648,0.254285,3932.6,3932.1,0.10466001]
[1734471482855,2.54277,3932.8,3932.2,0.10465625]
[1734471483057,2.54277,3932.8,3932.3,0.10465625]
[1734471483349,2.54278,3932.7,3931.9,0.7599]
[1734471483557,2.54278,3932.7,3932.0,0.10465387]
[1734471483853,2.54278,3932.7,3932.1,0.10465387]
[1734471484060,0.254278,3932.7,3932.2,0.10465387]
[1734471484272,2.54286,3932.6,3931.9,0.7599]
[1734471484438,2.54286,3932.6,3932.0,0.10465801]
[1734471484642,2.54286,3932.6,3932.1,0.10465801]
[1734471484837,2.54286,3932.6,3932.2,0.10465801]
[1734471485041,2.54286,3932.6,3932.3,0.10465012]
[1734471485252,2.797146,3932.6,3931.9,0.7599]
[1734471485473,2.797146,3932.6,3932.0,0.10464675]
[1734471485663,2.797146,3932.6,3932.1,0.10464675]
[1734471485858,2.797146,3932.6,3932.2,0.10464675]
[1734471486026,2.797146,3932.6,3931.9,0.7599]
[1734471486227,2.797146,3932.6,3932.0,0.10464485]
[1734471486433,2.797146,3932.6,3932.1,0.10464485]
[1734471486739,2.797146,3932.6,3932.2,0.10464485]
[1734471486945,2.797146,3932.6,3931.9,0.7599]
[1734471487269,2.797146,3932.6,3932.0,0.10463789]
[1734471487427,2.797146,3932.6,3932.1,0.10463789]
[1734471487632,2.54304,3932.3,3932.2,0.10463789]
[1734471487877,2.54319,3932.1,3931.3,0.7713]
[1734471488075,0.8146,3932.6,3931.4,0.10464048]
[1734471488285,2.5433,3931.9,3931.5,0.10464048]
[1734471488595,2.5433,3931.9,3931.6,0.10464048]
[1734471488737,2.5433,3931.9,3931.3,0.7713]
[1734471489078,2.54337,3931.8,3931.4,0.10464651]
[1734471489244,2.54337,3931.8,3931.5,0.10464651]
[1734471489631,2.54337,3931.8,3931.3,0.7713]
[1734471489838,2.54337,3931.8,3931.4,0.1046549]
[1734471490033,2.54337,3931.8,3931.4,0.20931338]
[1734471490232,2.54337,3931.8,3931.5,0.10465848]
[1734471490494,2.54337,3931.8,3931.4,0.1046549]
[1734471490683,0.254337,3931.8,3931.5,0.10465367]
[1734471490864,2.54355,3931.5,3931.4,0.1046549]
[1734471491178,2.54355,3931.5,3931.4,0.20931137]
[1734471491677,2.54355,3931.5,3931.4,0.10465647]
[1734471492137,2.54355,3931.5,3931.3,0.7713]
[1734471493081,2.54355,3931.5,3931.4,0.1046631]
[1734471495556,0.8146,3931.9,3931.4,0.1046631]
[1734471495557,2.54348,3931.7,3931.4,0.1046631]
[1734471495756,2.54349,3931.6,3931.5,0.1046631]
[1734471495994,2.54349,3931.6,3931.0,0.7551]
[1734471496302,2.54349,3931.6,3931.1,0.10472309]
[1734471496599,2.54349,3931.6,3931.2,0.10472309]
[1734471496809,2.54356,3931.5,3931.3,0.10472309]
[1734471497006,2.54356,3931.5,3931.0,0.7551]
[1734471497007,0.2879346,3931.5,3931.0,0.7551]
[1734471497310,2.54381,3931.2,3931.1,0.10472607]
[1734471497794,2.54342,3931.7,3931.1,0.10472607]
[1734471497998,1.86711453,3931.9,3931.2,0.10472607]
[1734471497999,0.8146,3931.9,3931.2,0.10472607]
[1734471498183,0.44103245,3931.8,3931.3,0.10472607]
[1734471498384,2.54342,3931.7,3930.7,0.7551]
[1734471498598,0.44103245,3931.8,3930.8,0.10471479]
[1734471498599,2.54355,3931.6,3930.8,0.10471479]
[1734471498765,2.54355,3931.6,3930.9,0.10471479]
[1734471498959,2.54355,3931.6,3931.0,0.10471479]
[1734471499177,2.54355,3931.6,3931.1,0.10471479]
[1734471499373,2.54355,3931.6,3931.2,0.10471479]
[1734471499593,2.54355,3931.6,3930.7,0.7551]
[1734471499776,2.54355,3931.6,3930.8,0.10470324]
[1734471499982,2.54355,3931.6,3930.9,0.10470324]
[1734471500303,0.44103245,3931.8,3931.0,0.10470324]
[1734471500467,2.54357,3931.5,3931.1,0.10470324]
[1734471500803,2.54357,3931.5,3931.2,0.10469761]
[1734471500966,2.54357,3931.5,3930.7,0.7551]
[1734471501167,2.54357,3931.5,3930.8,0.10469586]
[1734471501367,2.54369,3931.3,3930.9,0.10469586]
[1734471501591,2.54369,3931.3,3931.0,0.10469586]
[1734471501913,2.54369,3931.3,3930.7,0.7551]
[1734471502120,2.54369,3931.3,3930.8,0.10469931]
[1734471502281,2.54375,3931.3,3930.9,0.10469931]
[1734471502479,2.54375,3931.3,3930.7,0.7551]
[1734471502683,2.54375,3931.3,3930.8,0.10468712]
[1734471502923,1.49354698,3931.8,3930.7,0.7551]
[1734471503154,1.6717781,3931.7,3930.9,0.10468956]
[1734471503317,1.6717781,3931.7,3930.7,0.7551]
[1734471503318,2.54364,3931.4,3931.0,0.10468956]
[1734471503624,0.38869188,3931.7,3930.7,0.7551]
[1734471503828,2.54349,3931.6,3930.8,0.10466861]
[1734471503980,2.54349,3931.6,3930.6,0.50882]
[1734471503981,2.54349,3931.6,3931.0,0.7551]
[1734471504181,2.54349,3931.6,3931.1,0.10466861]
[1734471504501,0.44103245,3931.8,3931.2,0.10466861]
[1734471504828,2.98439245,3931.8,3931.0,0.7551]
[1734471504984,2.98441245,3931.8,3931.1,0.10465125]
[1734471505178,2.98441245,3931.8,3931.2,0.10465125]
[1734471505482,2.98441245,3931.8,3931.3,0.10465125]
[1734471505818,2.98441245,3931.8,3931.0,0.7551]
[1734471506036,1.05251453,3932.3,3931.3,0.7551]
[1734471506326,1.5787718,3932.5,3931.4,0.10462403]
[1734471506327,1.05251453,3932.5,3931.4,0.10462403]
[1734471506485,2.54291,3932.5,3931.5,1.36843403]
[1734471506686,0.43602245,3932.4,3931.6,0.10462403]
[1734471506938,0.43602245,3932.4,3931.7,0.10462403]
[1734471507188,2.54304,3932.3,3931.8,0.10462403]
[1734471507390,0.7648,3932.6,3931.5,0.7551]
[1734471507595,2.54313,3932.2,3931.6,0.10462969]
[1734471507794,2.54313,3932.2,3931.7,0.10462969]
[1734471508122,2.54313,3932.2,3931.5,0.7551]
[1734471508123,2.54313,3932.2,3931.8,0.10462969]
[1734471508341,2.54313,3932.2,3931.5,0.7551]
[1734471508491,2.54313,3932.2,3931.6,0.10463097]
[1734471508686,2.54313,3932.2,3931.7,0.10463097]
[1734471508886,2.54313,3932.2,3931.8,0.10463097]
[1734471509105,2.54313,3932.2,3931.5,0.7551]
[1734471509313,2.54313,3932.2,3931.6,0.10463062]
[1734471509491,2.54313,3932.2,3931.5,0.7551]
[1734471509731,2.54317,3932.1,3931.6,0.10463875]
[1734471509909,2.54317,3932.1,3931.5,0.7551]
[1734471510235,2.54317,3932.1,3931.6,0.10463434]
[1734471510393,2.54317,3932.1,3931.5,0.7551]
[1734471510589,2.54317,3932.1,3931.6,0.10463943]
[1734471510806,2.54317,3932.1,3931.5,0.7551]
[1734471511001,2.54317,3932.1,3931.6,0.10464044]
[1734471511200,2.54317,3932.1,3931.5,0.7551]
[1734471511444,2.54317,3932.1,3931.6,0.10464286]
[1734471511748,2.54317,3932.1,3931.5,0.7551]
[1734471511916,2.54317,3932.1,3931.6,0.10464511]
[1734471512116,4.8864518,3932.6,3931.5,0.7551]
[1734471512117,1.05251453,3932.3,3931.7,0.10464511]
[1734471512448,2.54356,3931.5,3931.0,0.8196]
[1734471512652,2.54356,3931.5,3931.1,0.10467597]
[1734471512832,1.87591453,3931.9,3931.1,0.10467597]
[1734471513030,1.87591453,3931.9,3931.0,0.8196]
[1734471513031,1.05251453,3932.0,3931.2,0.40462286]
[1734471513237,1.05251453,3932.2,3931.4,0.50872]
[1734471513541,4.1217518,3932.4,3931.4,0.50872]
[1734471513542,2.54298,3932.4,3931.5,0.10467597]
[1734471513712,0.44188945,3932.3,3931.6,0.10467597]
[1734471513914,0.44188945,3932.3,3931.7,0.10467597]
[1734471514110,0.44188945,3932.3,3931.8,0.92427597]
[1734471514453,2.54283,3932.7,3931.9,0.1046991]
[1734471514755,2.54283,3932.7,3931.3,4.05822237]
[1734471514756,1.05251453,3932.8,3932.1,0.8196]
[1734471515050,3.59515453,3933.0,3932.2,0.1046991]
[1734471515210,2.54264,3933.0,3932.3,0.1046991]
[1734471515411,2.54264,3933.0,3932.1,0.8196]
[1734471515412,2.54264,3933.0,3932.4,0.1046991]
[1734471515639,1.05251453,3933.1,3932.2,0.50862]
[1734471515836,2.54246,3933.2,3932.3,0.92427323]
[1734471516110,2.54246,3933.2,3932.4,0.10467323]
[1734471516335,2.54246,3933.2,3932.5,0.10467323]
[1734471516540,2.54246,3933.2,3932.3,0.8196]
[1734471516744,2.54246,3933.2,3932.4,0.10465294]
[1734471516966,2.54246,3933.2,3932.5,0.10465294]
[1734471517248,2.54246,3933.2,3932.6,0.10465294]
[1734471517447,2.54246,3933.2,3932.3,0.8196]
[1734471517653,1.05251453,3933.4,3932.4,0.1046318]
[1734471517838,2.54242,3933.3,3932.6,0.8196]
[1734471518446,2.54246,3933.2,3932.6,0.8196]
[1734471518648,3.14202563,3933.4,3932.6,0.8196]
[1734471519249,2.54243,3933.3,3932.6,0.8196]
[1734471519579,0.59968563,3933.4,3932.6,0.8196]
[1734471519580,2.54252,3933.1,3932.6,0.8196]
[1734471520685,2.5424,3933.3,3932.6,0.8196]
[1734471521184,2.54271,3932.8,3932.6,0.8196]
[1734471521692,2.54252,3933.1,3932.6,0.8196]
[1734471522885,0.75602302,3933.3,3932.6,0.8196]
[1734471522886,3.29845302,3933.3,3932.6,0.8196]
[1734471523860,2.54246,3933.2,3932.6,0.8196]
[1734471524752,2.54252,3933.1,3932.6,0.8196]
[1734471526877,2.54245,3933.2,3932.6,0.8196]
[1734471527077,2.8723873,3933.1,3932.6,0.8196]
[1734471527407,2.54275,3932.8,3932.6,0.8196]
[1734471529999,0.3298473,3933.1,3932.6,0.8196]
[1734471530211,2.54234,3933.4,3932.6,0.8196]
[1734471530894,2.54221,3933.6,3932.6,0.8196]
[1734471531212,2.54221,3933.6,3932.8,0.8158]
[1734471531409,2.54221,3933.6,3932.9,0.10451261]
[1734471531573,2.54221,3933.6,3932.8,0.8158]
[1734471531774,2.54221,3933.6,3932.9,0.10451043]
[1734471532014,2.54221,3933.6,3932.8,0.8158]
[1734471532306,1.86931453,3934.2,3933.0,0.8158]
[1734471532512,2.54171,3934.4,3933.2,0.8158]
[1734471532718,2.54157,3934.6,3933.6,0.8158]
[1734471532878,1.05251453,3934.8,3933.6,0.8158]
[1734471532879,2.54148,3934.8,3933.6,1.32423]
[1734471533078,0.44107945,3934.7,3933.7,0.10450358]
[1734471533320,0.44107945,3934.7,3933.9,0.8158]
[1734471533640,2.54163,3934.5,3933.9,0.8158]
[1734471535706,0.44107945,3934.7,3933.9,0.8158]
[1734471535907,2.54176,3934.3,3933.9,0.8158]
[1734471537094,2.54187,3934.2,3933.9,0.8158]
[1734471537302,2.54201,3933.9,3933.6,0.8158]
[1734471538446,2.54208,3933.8,3933.6,0.8158]
[1734471538649,2.5421,3933.8,3932.7,0.8158]
[1734471538853,0.8168,3934.3,3932.9,0.8158]
[1734471539001,0.8168,3934.3,3933.1,0.8158]
[1734471539309,2.54199,3934.0,3933.2,0.10440825]
[1734471539516,2.54199,3934.0,3933.1,0.8158]
[1734471540027,2.54199,3934.0,3933.2,0.10440769]
[1734471540341,2.54181,3934.2,3933.1,0.8158]
[1734471540542,0.8168,3934.3,3933.2,0.1044228]
[1734471540741,0.335851,3934.2,3933.1,0.8158]
[1734471540971,2.54201,3933.9,3933.2,0.10442433]
[1734471541260,2.54201,3933.9,3933.1,0.8158]
[1734471541462,2.54201,3933.9,3933.2,0.10444221]
[1734471541636,2.54201,3933.9,3933.1,0.8158]
[1734471541958,2.54201,3933.9,3933.2,0.10444389]
[1734471542165,2.54189,3934.1,3933.3,0.10444029]
[1734471542326,2.54189,3934.1,3933.1,0.948234]
[1734471542528,2.54189,3934.1,3933.2,0.10446352]
[1734471542861,2.54175,3934.3,3933.3,0.89028541]
[1734471543022,0.8031,3934.9,3933.5,0.7604]
[1734471543230,2.54153,3934.7,3933.6,0.86486352]
[1734471543537,2.54153,3934.7,3933.8,0.7604]
[1734471543922,0.8031,3934.9,3933.8,0.7604]
[1734471544122,2.54157,3934.6,3933.8,0.7604]
[1734471544332,2.876037,3934.6,3933.8,0.7604]
[1734471544723,0.334467,3934.6,3933.8,0.7604]
[1734471544964,2.54143,3934.8,3933.8,0.7604]
[1734471546055,0.8031,3935.3,3934.0,0.7604]
[1734471546270,3.34424,3935.3,3934.0,0.7604]
[1734471547158,2.54116,3935.2,3934.0,0.7604]
[1734471547332,2.54142,3934.9,3934.0,0.7604]
[1734471547532,2.795562,3934.9,3934.0,0.7604]
[1734471547969,0.254142,3934.9,3934.0,0.7604]
[1734471548264,2.54154,3934.7,3934.0,0.7604]
[1734471549435,2.54121,3935.2,3934.0,0.7604]
[1734471549436,2.54155,3934.6,3934.0,0.7604]
[1734471550068,2.54143,3934.8,3934.0,0.7604]
[1734471550569,2.41795975,3935.2,3934.0,0.7604]
[1734471550732,0.32210598,3935.1,3934.0,0.7604]
[1734471551261,2.54154,3934.7,3934.0,0.7604]
[1734471552365,2.54159,3934.6,3934.0,0.7604]
[1734471553265,0.8031,3934.7,3933.1,0.7604]
[1734471553473,2.54184,3934.2,3933.3,0.7604]
[1734471553629,2.54169,3934.4,3933.4,0.10445523]
[1734471553828,2.54169,3934.4,3933.5,0.7604]
[1734471554029,2.5414,3934.9,3933.6,0.86485523]
[1734471554284,1.05251453,3935.3,3933.6,3.17835975]
[1734471554591,3.3439,3935.8,3934.4,0.7604]
[1734471554775,2.5411,3935.3,3934.4,0.7604]
[1734471555968,2.54094,3935.6,3934.5,0.8648483]
[1734471556167,0.8031,3935.8,3933.8,0.02541413]
[1734471556168,2.54078,3935.8,3934.7,1.26869]
[1734471556476,2.54078,3935.8,3934.9,0.7604]
[1734471556477,0.254078,3935.8,3934.9,0.7604]
[1734471556629,0.254078,3935.8,3935.1,0.7604]
[1734471557472,2.54059,3936.1,3935.1,0.7604]
[1734471557829,2.54059,3936.1,3935.3,0.7604]
[1734471558060,2.54044,3936.4,3935.3,0.7604]
[1734471558396,2.54044,3936.4,3935.4,0.86485324]
[1734471558542,2.54044,3936.4,3935.5,0.10445324]
[1734471558875,2.794484,3936.4,3935.4,0.7604]
[1734471559078,2.794484,3936.4,3935.5,0.10438187]
[1734471559377,2.54025,3936.7,3935.6,0.86482598]
[1734471559697,2.54028,3936.6,3935.6,0.7604]
[1734471559896,2.54033,3936.5,3935.6,0.7604]
[1734471563867,2.54033,3936.5,3935.6,0.78580699]
[1734471564067,2.54033,3936.5,3935.7,0.1293997]
[1734471564281,2.54033,3936.5,3935.8,0.7604]
[1734471564881,2.54019,3936.8,3935.8,0.7604]
[1734471565484,2.41795975,3937.2,3935.8,0.7604]
[1734471565485,2.54006,3936.9,3935.9,0.7604]
[1734471566152,7.95788975,3937.2,3935.9,0.7604]
[1734471566496,3.87609898,3937.1,3935.9,0.7604]
[1734471567667,2.54015,3936.8,3935.9,0.7604]
[1734471568670,2.53987,3937.2,3935.9,0.7604]
[1734471568855,2.54007,3936.9,3935.9,0.7604]
[1734471569864,2.53988,3937.2,3936.2,0.7604]